{"text_format":"1","workbook":"xlsx","n_sheets":3,"sheets":["Лист1","Лист2","Лист3"],"not_rendered":{"charts":7,"images":1,"macros":1,"external_links":0,"defined_names":0,"comments":0,"pivot_tables":0},"unopened":[],"bounds":{"document_bytes":16777216,"sheet_cells":100000,"rows_first":2000,"rows_last":500,"rows_between":2000,"halvings":0,"cell_chars":16384,"cell_head_chars":4096},"cells_cut":0,"cells_raw":0,"read":"whole","date_system":"1900"}

{"sheet":"Лист1","index":0,"n_rows":37,"n_cols":45,"rows_kept":37,"cut":false,"hidden":false,"merged":[[0,15,0,44],[24,0,30,0],[31,0,37,0],[1,0,2,0],[3,0,9,0],[10,0,16,0],[17,0,23,0]]}
[null,null,null,null,null,null,null,null,null,null,null,null,null,null,null,"РАСПИСАНИЕ УЧЕБНЫХ ЗАНЯТИЙ В 5-11-Х КЛАССОВ МУНИЦИПАЛЬНОГО ОБЩЕОБРАЗОВАТЕЛЬНОГО УЧЕЖДЕНИЯ \"Вейделевская средняя общеобразовательная школа Вейделевского района Белгородской области\" на 2017-2018 учебный год"]
[null,"5А",null,"5Б",null,"5В",null,"5Г",null,"6А",null,"6Б",null,"6В",null,"7А",null,"7Б",null,"7В",null,"7Г",null,"8А",null,"8Б",null,"8В",null,"9А",null,"9Б",null,"9В",null,"10А",null,"10Б",null,"11А",null,"11Б",null,"11В"]
[null,"№32",null,"№34",null,"№18",null,"№24",null,"№45",null,"№44",null,"№30",null,"№28",null,"№31",null,"№43",null,"№20",null,"№47",null,"№27",null,"№36",null,"№22",null,"№38",null,"№40",null,"№33",null,"№46",null,"№35",null,"№41",null,"№42"]
["понедельник","РУССКИЙ ЯЗЫК",32,"МАТЕМА-ТИКА",34,"РУССКИЙ ЯЗЫК",44,"РУССКИЙ ЯЗЫК",31,"ИЗОБРАЗИТЕЛЬ-НОЕ ИСКУССТВО",40,"АНГЛИЙ-СКИЙ ЯЗЫК",39,"РУССКИЙ ЯЗЫК",41,"МАТЕМА-ТИКА",35,"ФИЗИЧЕС-КАЯ КУЛЬТУРА",null,"РУССКИЙ ЯЗЫК",43,"МАТЕМА-ТИКА",20,"АНГЛИЙ-СКИЙ ЯЗЫК",38,"ИСТОРИЯ",27,"БИОЛО-ГИЯ",28,"ИСТОРИЯ",42,"ГЕОГРА-ФИЯ",30,"ФИЗИЧЕС-КАЯ КУЛЬТУРА",null,"РУССКИЙ ЯЗЫК",33,"МАТЕМА-ТИКА",36,"ИСТОРИЯ",47,"АНГЛИЙ-СКИЙ ЯЗЫК",45,"ИНФОРМА-ТИКА",18]
[null,"МАТЕМА-ТИКА",35,"АНГЛИЙ-СКИЙ ЯЗЫК",18,"МАТЕМА-ТИКА",27,"ЛИТЕРА-ТУРА",31,"АНГЛИЙ-СКИЙ ЯЗЫК","45*39","ИСТОРИЯ",42,"ФИЗИЧЕС-КАЯ КУЛЬТУРА",null,"РУССКИЙ ЯЗЫК",33,"ГЕОГРА-ФИЯ",36,"МАТЕМА-ТИКА",43,"РУССКИЙ ЯЗЫК",44,"МАТЕМА-ТИКА",34,"БИОЛО-ГИЯ",28,"ХИМИЯ",22,"ФИЗИКА",20,"РУССКИЙ ЯЗЫК",32,"ГЕОГРА-ФИЯ",30,"ОСНОВЫ БЕЗОПА-СНОСТИ ЖИЗНЕДЕ-ЯТЕЛЬНОСТИ","0*47","ФИЗИЧЕС-КАЯ КУЛЬТУРА",null,"РУССКИЙ ЯЗЫК",46,"ФИЗИКА",24,"АНГЛИЙ-СКИЙ ЯЗЫК",38]
[null,"ТЕХНОЛО-ГИЯ","7*м","РУССКИЙ ЯЗЫК",33,"ИСТОРИЯ",27,"МАТЕМА-ТИКА",45,"МАТЕМА-ТИКА",35,"ИЗОБРАЗИТЕЛЬ-НОЕ ИСКУССТВО",40,"АНГЛИЙ-СКИЙ ЯЗЫК","38*39","ФИЗИЧЕС-КАЯ КУЛЬТУРА",null,"ОСНОВЫ БЕЗОПА-СНОСТИ ЖИЗНЕДЕ-ЯТЕЛЬНОСТИ",32,"ГЕОГРА-ФИЯ",36,"ГЕОГРА-ФИЯ",30,"БИОЛО-ГИЯ",28,"РУССКИЙ ЯЗЫК",31,"РУССКИЙ ЯЗЫК",41,"МАТЕМА-ТИКА",20,"МАТЕМА-ТИКА",43,"РУССКИЙ ЯЗЫК",44,"МАТЕМА-ТИКА",47,"ФИЗИКА",24,"ЛИТЕРА-ТУРА",46,"МАТЕМА-ТИКА",34,"ФИЗИЧЕС-КАЯ КУЛЬТУРА"]
[null,"ТЕХНОЛО-ГИЯ","7*м","ИСТОРИЯ",27,"ФИЗИЧЕС-КАЯ КУЛЬТУРА",null,"ФИЗИЧЕС-КАЯ КУЛЬТУРА",null,"РУССКИЙ ЯЗЫК",32,"РУССКИЙ ЯЗЫК",44,"ИЗОБРАЗИТЕЛЬ-НОЕ ИСКУССТВО",40,"АНГЛИЙ-СКИЙ ЯЗЫК",38,"МАТЕМА-ТИКА",30,"АНГЛИЙ-СКИЙ ЯЗЫК",45,"ОСНОВЫ БЕЗОПА-СНОСТИ ЖИЗНЕДЕ-ЯТЕЛЬНОСТИ",46,"РУССКИЙ ЯЗЫК",33,"ХИМИЯ",22,"МАТЕМА-ТИКА",43,"ЛИТЕРА-ТУРА",31,"ФИЗИКА",20,"МАТЕМА-ТИКА",34,"ИСТОРИЯ",47,"АНГЛИЙ-СКИЙ ЯЗЫК",39,"МАТЕМА-ТИКА",35,"ИНФОРМА-ТИКА",18,"ЛИТЕРА-ТУРА",41]
[null,"АНГЛИЙ-СКИЙ ЯЗЫК","38*39","ФИЗИЧЕС-КАЯ КУЛЬТУРА",null,"АНГЛИЙ-СКИЙ ЯЗЫК",33,"ИСТОРИЯ",27,"ЛИТЕРА-ТУРА",44,"МАТЕМА-ТИКА",34,"МАТЕМА-ТИКА",30,"ГЕОГРА-ФИЯ",36,"РУССКИЙ ЯЗЫК",31,"ОСНОВЫ БЕЗОПА-СНОСТИ ЖИЗНЕДЕ-ЯТЕЛЬНОСТИ",46,"АНГЛИЙ-СКИЙ ЯЗЫК",45,"ТЕХНОЛО-ГИЯ","7*м","МАТЕМА-ТИКА",35,"ФИЗИЧЕС-КАЯ КУЛЬТУРА",null,"ФИЗИЧЕС-КАЯ КУЛЬТУРА",null,"ИСТОРИЯ",42,"ФИЗИКА",20,"ФИЗИКА",24,"РУССКИЙ ЯЗЫК",32,"ОБЩЕСТВО-ЗНАНИЕ",47,"РУССКИЙ ЯЗЫК",41,"МАТЕМА-ТИКА",43]
[null,null,null,null,null,null,null,null,null,"ФИЗИЧЕС-КАЯ КУЛЬТУРА",null,"ЛИТЕРА-ТУРА",44,"РУССКИЙ ЯЗЫК",41,"ОСНОВЫ БЕЗОПА-СНОСТИ ЖИЗНЕДЕ-ЯТЕЛЬНОСТИ",46,"ЛИТЕРА-ТУРА",31,"ИЗОБРАЗИТЕЛЬ-НОЕ ИСКУССТВО",40,"ФИЗИЧЕС-КАЯ КУЛЬТУРА",null,"ХИМИЯ",22,"ТЕХНОЛО-ГИЯ","7*м","ФИЗИКА",24,"ГЕОГРА-ФИЯ",30,"АНГЛИЙ-СКИЙ ЯЗЫК",38,"ИСТОРИЯ",42,"АНГЛИЙ-СКИЙ ЯЗЫК",39,"ИНФОРМАТИКА",18,"АНГЛИЙ-СКИЙ ЯЗЫК",45,"МЕТОДЫ РЕШЕНИЯ ЗАДАЧ ПО ФИЗИКЕ",20,"МАТЕМА-ТИКА",43]
[null,null,null,null,null,null,null,null,null,null,null,null,null,null,null,null,null,null,null,"ФИЗИЧЕС-КАЯ КУЛЬТУРА",null,"ИЗОБРАЗИТЕЛЬ-НОЕ ИСКУССТВО",40,"МАТЕМА-ТИКА",34,"ФИЗИЧЕС-КАЯ КУЛЬТУРА",null,"ТЕХНОЛО-ГИЯ","7*м","РУССКАЯ СЛОВЕС-НОСТЬ. ОТ СЛОВА К СЛОВЕСНОСТИ",41,"3адачи с параметрами",36,"ПРАВОСЛАВ-НАЯ КУЛЬТУРА",22,"ИНДИВИДУАЛЬНЫЙ ПРОЕКТ",null,"ИНДИВИДУАЛЬНЫЙ ПРОЕКТ",null,"ФИЗИЧЕС-КАЯ КУЛЬТУРА",null,"ФИЗИЧЕС-КАЯ КУЛЬТУРА",null,"ИСТОРИЯ",42]
["вторник","ФИЗИЧЕС-КАЯ КУЛЬТУРА",null,"ТЕХНОЛО-ГИЯ","7*м","МАТЕМА-ТИКА",36,"РУССКИЙ ЯЗЫК",31,"РУССКИЙ ЯЗЫК",32,"РУССКИЙ ЯЗЫК",44,"РУССКИЙ ЯЗЫК",41,"МАТЕМА-ТИКА",28,"ИСТОРИЯ",27,"МАТЕМА-ТИКА",43,"МАТЕМА-ТИКА",20,"МАТЕМА-ТИКА",34,"МАТЕМА-ТИКА",35,"ИСТОРИЯ",47,"АНГЛИЙ-СКИЙ ЯЗЫК","45*39","БИОЛО-ГИЯ",30,"ОБЩЕСТВО-ЗНАНИЕ",42,"РУССКИЙ ЯЗЫК",33,"ИСТОРИЯ",46,"ХИМИЯ",22,"ФИЗИКА",24,"АНГЛИЙ-СКИЙ ЯЗЫК",38]
[null,"МАТЕМА-ТИКА",35,"ТЕХНОЛО-ГИЯ","7*м","РУССКИЙ ЯЗЫК",44,"МАТЕМА-ТИКА",28,"ИСТОРИЯ",27,"ОБЩЕСТВО-ЗНАНИЕ",42,"МАТЕМА-ТИКА",34,"ЛИТЕРА-ТУРА",33,"МАТЕМА-ТИКА",36,"ЛИТЕРА-ТУРА",46,"АНГЛИЙ-СКИЙ ЯЗЫК",45,"ФИЗИКА",20,"ЛИТЕРА-ТУРА",31,"АНГЛИЙ-СКИЙ ЯЗЫК","38*39","РУССКИЙ ЯЗЫК",41,"ЛИТЕРА-ТУРА",32,"БИОЛО-ГИЯ",30,"ОБЩЕСТВО-ЗНАНИЕ",47,"ФИЗИКА",24,"ФИЗИЧЕС-КАЯ КУЛЬТУРА",null,"ХИМИЯ",22,"МАТЕМА-ТИКА",43]
[null,"ИСТОРИЯ",47,"РУССКИЙ ЯЗЫК",33,"ТЕХНОЛО-ГИЯ","7*м","МУЗЫКА",17,"РУССКИЙ ЯЗЫК",32,"МАТЕМА-ТИКА",43,"ИСТОРИЯ",27,"БИОЛО-ГИЯ",28,"ФИЗИКА",24,"ИСТОРИЯ",46,"БИОЛО-ГИЯ",30,"ГЕОГРА-ФИЯ",36,"ФИЗИКА",20,"ФИЗИЧЕС-КАЯ КУЛЬТУРА",null,"ОБЩЕСТВО-ЗНАНИЕ",42,"ФИЗИЧЕС-КАЯ КУЛЬТУРА",null,"ЛИТЕРА-ТУРА",44,"ИНФОРМА-ТИКА",18,"МАТЕМА-ТИКА",35,"РУССКИЙ ЯЗЫК",31,"МАТЕМА-ТИКА",34,"ХИМИЯ",22]
[null,"МУЗЫКА",17,"МАТЕМА-ТИКА",34,"ТЕХНОЛО-ГИЯ","7*м","АНГЛИЙ-СКИЙ ЯЗЫК",38,"МАТЕМА-ТИКА",35,"БИОЛО-ГИЯ",30,"ЛИТЕРА-ТУРА",27,"ФИЗИКА",24,"РУССКИЙ ЯЗЫК",31,"БИОЛО-ГИЯ",28,"ЛИТЕРА-ТУРА",44,"ИНФОРМАТИКА",18,"ГЕОГРА-ФИЯ",36,"МАТЕМА-ТИКА",43,"МАТЕМА-ТИКА",20,"ОБЩЕСТВО-ЗНАНИЕ",42,"ХИМИЯ",22,"ЛИТЕРА-ТУРА",33,"ЛИТЕРА-ТУРА",32,"МАТЕМА-ТИКА",47,"ИСТОРИЯ",46,"ЛИТЕРА-ТУРА",41]
[null,"РУССКИЙ ЯЗЫК",32,"МУЗЫКА",17,"АНГЛИЙ-СКИЙ ЯЗЫК",44,"ТЕХНОЛО-ГИЯ","7*м","БИОЛО-ГИЯ",30,"РУССКИЙ ЯЗЫК",31,"ФИЗИЧЕС-КАЯ КУЛЬТУРА",null,"МАТЕМА-ТИКА",20,"АНГЛИЙ-СКИЙ ЯЗЫК","45*39","ФИЗИКА",24,"ИСТОРИЯ",27,"ЛИТЕРА-ТУРА",33,"ИНФОРМАТИКА",18,"ГЕОГРА-ФИЯ",36,"БИОЛО-ГИЯ",28,"ХИМИЯ",22,"МАТЕМА-ТИКА",34,"ФИЗИЧЕС-КАЯ КУЛЬТУРА",null,"МАТЕМА-ТИКА",35,"ОБЩЕСТВО-ЗНАНИЕ",47,"ЛИТЕРА-ТУРА",41,"ПРАВОСЛАВ-НАЯ КУЛЬТУРА",46]
[null,"ЛИТЕРА-ТУРА",32,"ЛИТЕРА-ТУРА",33,"ЛИТЕРА-ТУРА",44,"ТЕХНОЛО-ГИЯ","7*м","ФИЗИЧЕС-КАЯ КУЛЬТУРА",null,"ФИЗИЧЕС-КАЯ КУЛЬТУРА",null,"БИОЛО-ГИЯ",30,"ИСТОРИЯ",27,"БИОЛО-ГИЯ",28,"МУЗЫКА",17,"ФИЗИКА",24,"ИСТОРИЯ",47,"АНГЛИЙ-СКИЙ ЯЗЫК",45,"РУССКИЙ ЯЗЫК",41,"ХИМИЯ",22,"МАТЕМА-ТИКА",35,"АНГЛИЙ-СКИЙ ЯЗЫК",39,"МАТЕМА-ТИКА",43,"АСТРОНОМИЯ",20,"ЛИТЕРА-ТУРА",31,"ПРАВОСЛАВ-НАЯ КУЛЬТУРА",46,"ОБЩЕСТВО-ЗНАНИЕ",42]
[null,null,null,null,null,null,null,null,null,null,null,null,null,null,null,"МУЗЫКА",17,"ФИЗИЧЕС-КАЯ КУЛЬТУРА",null,null,null,null,null,"ФИЗИЧЕС-КАЯ КУЛЬТУРА",null,"МАТЕМА-ТИКА",35,null,null,"ФИЗИЧЕС-КАЯ КУЛЬТУРА",null,null,null,"ФИЗИЧЕС-КАЯ КУЛЬТУРА",null,"ЭКОНОМИКА",47,"ИНФОРМА-ТИКА",18,"ПРАВОСЛАВ-НАЯ КУЛЬТУРА",46,"ЗАМЕЧАТЕЛЬНЫЕ НЕРАВЕНСТВА: СПОСОБЫ ПОЛУЧЕНИЯ И ПРИМЕРЫ ПРИМЕНЕНИЯ",34,"ТЕХНОЛО-ГИЯ (ОП)",7]
["среда","РУССКИЙ ЯЗЫК",32,"РУССКИЙ ЯЗЫК",33,"РУССКИЙ ЯЗЫК",44,"ГЕОГРА-ФИЯ",30,"МАТЕМА-ТИКА",35,"АНГЛИЙ-СКИЙ ЯЗЫК",39,"РУССКИЙ ЯЗЫК",41,"МАТЕМА-ТИКА",47,"РУССКИЙ ЯЗЫК",31,"ИНФОРМАТИКА","нш","МАТЕМА-ТИКА",22,"МАТЕМА-ТИКА",34,"ОБЩЕСТВО-ЗНАНИЕ",27,"АНГЛИЙ-СКИЙ ЯЗЫК","38*43","АНГЛ.ЯЗ\\ИНФОРМ","18*45","ИСТОРИЯ",42,"ОСНОВЫ БЕЗОПА-СНОСТИ ЖИЗНЕДЕ-ЯТЕЛЬНОСТИ",0,"ФИЗИКА",24,"ОБЩЕСТВО-ЗНАНИЕ",46,"ГЕОГРА-ФИЯ",36,"ФИЗИКА",20,"БИОЛО-ГИЯ",28]
[null,"ЛИТЕРА-ТУРА",32,"ОБЩЕСТВО-ЗНАНИЕ",27,"МАТЕМА-ТИКА",22,"МАТЕМА-ТИКА",24,"МУЗЫКА",17,"ГЕОГРА-ФИЯ",36,"АНГЛИЙ-СКИЙ ЯЗЫК","39*38","ФИЗИЧЕС-КАЯ КУЛЬТУРА",null,"МАТЕМА-ТИКА",41,"РУССКИЙ ЯЗЫК",45,"РУССКИЙ ЯЗЫК",44,"РУССКИЙ ЯЗЫК",33,"РУССКИЙ ЯЗЫК",31,"ОБЩЕСТВО-ЗНАНИЕ",47,"ИСТОРИЯ",42,"МАТЕМА-ТИКА",34,"ФИЗИКА",20,"БИОЛО-ГИЯ",28,"МАТЕМА-ТИКА",35,"ОСНОВЫ БЕЗОПА-СНОСТИ ЖИЗНЕДЕ-ЯТЕЛЬНОСТИ","0*7","ОБЩЕСТВО-ЗНАНИЕ",46,"МАТЕМА-ТИКА",43]
[null,"МАТЕМА-ТИКА",35,"ГЕОГРА-ФИЯ",30,"ОБЩЕСТВО-ЗНАНИЕ",27,"ИЗОБРАЗИТЕЛЬ-НОЕ ИСКУССТВО",40,"РУССКИЙ ЯЗЫК",32,"РУССКИЙ ЯЗЫК",41,"МУЗЫКА",17,"РУССКИЙ ЯЗЫК",33,"ФИЗИЧЕС-КАЯ КУЛЬТУРА",null,"МАТЕМА-ТИКА",43,"ИНФОРМАТИКА",18,"АНГЛИЙ-СКИЙ ЯЗЫК",38,"АНГЛИЙ-СКИЙ ЯЗЫК",45,"ЛИТЕРА-ТУРА",46,"ЛИТЕРА-ТУРА",31,"ФИЗИКА",20,"РУССКИЙ ЯЗЫК",44,"МАТЕМА-ТИКА",36,"АНГЛИЙ-СКИЙ ЯЗЫК",39,"ФИЗИКА",24,"МАТЕМА-ТИКА",34,"ОСНОВЫ БЕЗОПА-СНОСТИ ЖИЗНЕДЕ-ЯТЕЛЬНОСТИ","0*7"]
[null,"ИЗОБРАЗИТЕЛЬ-НОЕ ИСКУССТВО",40,"ЛИТЕРА-ТУРА",33,"ГЕОГРА-ФИЯ",30,"РУССКИЙ ЯЗЫК",31,"ГЕОГРА-ФИЯ",36,"МУЗЫКА",17,"ЛИТЕРА-ТУРА",44,"АНГЛИЙ-СКИЙ ЯЗЫК",38,"АНГЛ.ЯЗ\\ИНФОРМ","45*нш","ОБЩЕСТВО-ЗНАНИЕ",46,"ОБЩЕСТВО-ЗНАНИЕ",27,"ФИЗИЧЕС-КАЯ КУЛЬТУРА",null,"МАТЕМА-ТИКА",35,"МАТЕМА-ТИКА",43,"МАТЕМА-ТИКА",20,"РУССКИЙ ЯЗЫК",32,"МАТЕМА-ТИКА",34,"АНГЛИЙ-СКИЙ ЯЗЫК",39,"БИОЛО-ГИЯ",28,"ЛИТЕРА-ТУРА",41,"ОСНОВЫ БЕЗОПА-СНОСТИ ЖИЗНЕДЕ-ЯТЕЛЬНОСТИ","0*7","ФИЗИКА",24]
[null,"ГЕОГРА-ФИЯ",30,"МАТЕМА-ТИКА",34,"ЛИТЕРА-ТУРА",44,"ОБЩЕСТВО-ЗНАНИЕ",27,"АНГЛИЙ-СКИЙ ЯЗЫК","39*45","МАТЕМА-ТИКА",43,"МАТЕМА-ТИКА",35,"ИНФОРМА-ТИКА",18,"РОДНАЯ ЛИТЕРА-ТУРА",31,"ФИЗИЧЕС-КАЯ КУЛЬТУРА",null,"МУЗЫКА",17,"ОБЩЕСТВО-ЗНАНИЕ",47,"ИЗОБРАЗИТЕЛЬ-НОЕ ИСКУССТВО",40,"ФИЗИКА",24,"ФИЗИКА",20,"АНГЛИЙ-СКИЙ ЯЗЫК",38,"АНГЛИЙ-СКИЙ ЯЗЫК",22,"ЛИТЕРА-ТУРА",33,"ОСНОВЫ БЕЗОПА-СНОСТИ ЖИЗНЕДЕ-ЯТЕЛЬНОСТИ","0*7","БИОЛО-ГИЯ",28,"ГЕОГРА-ФИЯ",36,"ОБЩЕСТВО-ЗНАНИЕ",42]
[null,"АНГЛИЙ-СКИЙ ЯЗЫК","38*39","АНГЛИЙ-СКИЙ ЯЗЫК",46,"МУЗЫКА",17,"ЛИТЕРА-ТУРА",31,"МАТЕМА-ТИКА",35,"ЛИТЕРА-ТУРА",41,"ГЕОГРА-ФИЯ",30,"ОБЩЕСТВО-ЗНАНИЕ",27,"АНГЛ.ЯЗ\\ИНФОРМ","33*нш","АНГЛИЙ-СКИЙ ЯЗЫК",45,"РОДНАЯ ЛИТЕРА-ТУРА",44,"ИЗОБРАЗИТЕЛЬ-НОЕ ИСКУССТВО",40,"ФИЗИЧЕС-КАЯ КУЛЬТУРА",null,"МАТЕМА-ТИКА",43,"АНГЛ.ЯЗ\\ИНФОРМ","18*22","РОДНАЯ ЛИТЕРА-ТУРА",32,"ИСТОРИЯ",42,"ПРАВО",47,"ФИЗИКА",24,"МАТЕМА-ТИКА",34,"БИОЛО-ГИЯ",28,"ГЕОГРА-ФИЯ",36]
[null,null,null,null,null,null,null,null,null,null,null,null,null,null,null,null,null,"МУЗЫКА",17,null,null,"ФИЗИЧЕС-КАЯ КУЛЬТУРА",null,null,null,null,null,"ИЗОБРАЗИТЕЛЬ-НОЕ ИСКУССТВО",40,"ОСНОВЫ БЕЗОПА-СНОСТИ ЖИЗНЕДЕ-ЯТЕЛЬНОСТИ",0,"ФИЗИЧЕС-КАЯ КУЛЬТУРА",null,null,null,"ОБЩЕСТВО-ЗНАНИЕ",47,"ФИЗИЧЕС-КАЯ КУЛЬТУРА",null,"ЗАМЕЧАТЕЛЬНЫЕ НЕРАВЕНСТВА: СПОСОБЫ ПОЛУЧЕНИЯ И ПРИМЕРЫ ПРИМЕНЕНИЯ",35,"ФИЗИЧЕС-КАЯ КУЛЬТУРА",null,"МИРОВАЯ ХУДО-ЖЕСТВЕННАЯ КУЛЬТУРА",41]
["четверг","РУССКИЙ ЯЗЫК",32,"РУССКИЙ ЯЗЫК",33,"ИЗОБРАЗИТЕЛЬ-НОЕ ИСКУССТВО",40,"РУССКИЙ ЯЗЫК",31,"АНГЛИЙ-СКИЙ ЯЗЫК","39*45","МАТЕМА-ТИКА",46,"ТЕХНОЛО-ГИЯ","7*м","МАТЕМА-ТИКА",36,"ОБЩЕСТВО-ЗНАНИЕ",27,"МАТЕМА-ТИКА",43,"МАТЕМА-ТИКА",20,"МАТЕМА-ТИКА",34,"МАТЕМА-ТИКА",35,"БИОЛО-ГИЯ",28,"ГЕОГРА-ФИЯ",30,"АНГЛИЙ-СКИЙ ЯЗЫК",38,"АНГЛИЙ-СКИЙ ЯЗЫК",22,"ИСТОРИЯ",47,"ИНФОРМАТИКА",18,"РУССКИЙ ЯЗЫК",44,"ФИЗИКА",24,"РОДНОЙ ЯЗЫК И РОДНАЯ ЛИТЕРАТУРА",41]
[null,"МАТЕМА-ТИКА",35,"МАТЕМА-ТИКА",34,"БИОЛО-ГИЯ",28,"БИОЛО-ГИЯ",22,"ОБЩЕСТВО-ЗНАНИЕ",27,"ФИЗИЧЕС-КАЯ КУЛЬТУРА",null,"ТЕХНОЛО-ГИЯ","7*м","РУССКИЙ ЯЗЫК",33,"МАТЕМА-ТИКА",36,"ФИЗИКА",24,"РУССКИЙ ЯЗЫК",44,"ФИЗИКА",20,"РОДНАЯ ЛИТЕРА-ТУРА",31,"МАТЕМА-ТИКА",43,"РУССКИЙ ЯЗЫК",41,"РУССКИЙ ЯЗЫК",32,"ИНФОРМА-ТИКА",18,"АНГЛИЙ-СКИЙ ЯЗЫК",39,"ФИЗИКА",30,"МАТЕМА-ТИКА",45,"ИСТОРИЯ",46,"АНГЛИЙ-СКИЙ ЯЗЫК",38]
[null,"АНГЛИЙ-СКИЙ ЯЗЫК","38*39","БИОЛО-ГИЯ",22,"РУССКИЙ ЯЗЫК",44,"ФИЗИЧЕС-КАЯ КУЛЬТУРА",null,"РУССКИЙ ЯЗЫК",32,"ТЕХНОЛО-ГИЯ","7*м","ОБЩЕСТВО-ЗНАНИЕ",27,"ФИЗИКА",24,"ФИЗИКА",36,"РУССКИЙ ЯЗЫК",31,"ГЕОГРА-ФИЯ",30,"РОДНОЙ ЯЗЫК",33,"ФИЗИКА",20,"ФИЗИЧЕС-КАЯ КУЛЬТУРА",null,"БИОЛО-ГИЯ",28,"МАТЕМА-ТИКА",42,"МАТЕМА-ТИКА",34,"МАТЕМА-ТИКА",43,"МАТЕМА-ТИКА",35,"ИСТОРИЯ",47,"АНГЛИЙ-СКИЙ ЯЗЫК",45,"РУССКОЕ ПРАВО-ПИСАНИЕ:ОРФОГРАФИЯ И ПУНКТУАЦИЯ",41]
[null,"ОБЩЕСТВО-ЗНАНИЕ",47,"ИЗОБРАЗИТЕЛЬ-НОЕ ИСКУССТВО",40,"МАТЕМА-ТИКА",34,"ИСТОРИЯ",27,"МАТЕМА-ТИКА",35,"ТЕХНОЛО-ГИЯ","7*м","МАТЕМА-ТИКА",43,"АНГЛИЙ-СКИЙ ЯЗЫК",38,"РУССКИЙ ЯЗЫК",31,"ГЕОГРА-ФИЯ",36,"ФИЗИКА",24,"ХИМИЯ",22,"БИОЛО-ГИЯ",28,"РОДНАЯ ЛИТЕРА-ТУРА",32,"МАТЕМА-ТИКА",20,"ГЕОГРА-ФИЯ",30,"РУССКИЙ ЯЗЫК",44,"ФИЗИЧЕС-КАЯ КУЛЬТУРА",null,"АНГЛИЙ-СКИЙ ЯЗЫК",39,"АНГЛИЙ-СКИЙ ЯЗЫК",45,"ЛИТЕРА-ТУРА",41,"СТАНОВЛЕНИЕ ГРАЖДАНСКОГО ОБЩЕСТВА:ИСТОРИЧЕСКИЕ ИСТОКИ",42]
[null,"БИОЛО-ГИЯ",28,"ФИЗИЧЕС-КАЯ КУЛЬТУРА",null,"ИСТОРИЯ",27,"МАТЕМА-ТИКА",24,"ТЕХНОЛО-ГИЯ","7*м","РУССКИЙ ЯЗЫК",42,"АНГЛИЙ-СКИЙ ЯЗЫК","38*39","РОДНАЯ ЛИТЕРА-ТУРА",33,"ГЕОГРА-ФИЯ",36,"ИСТОРИЯ",46,"ФИЗИЧЕС-КАЯ КУЛЬТУРА",null,"МАТЕМА-ТИКА",34,"АНГЛИЙ-СКИЙ ЯЗЫК",45,"ХИМИЯ",22,"РОДНАЯ ЛИТЕРА-ТУРА",31,"ФИЗИЧЕС-КАЯ КУЛЬТУРА",null,"РОДНАЯ ЛИТЕРА-ТУРА",44,"ЭКОНОМИКА",47,"ЛИТЕРА-ТУРА",32,"РОДНОЙ ЯЗЫК И РОДНАЯ ЛИТЕРАТУРА",30,"РОДНОЙ ЯЗЫК И РОДНАЯ ЛИТЕРАТУРА",41,"ЗАМЕЧАТЕЛЬНЫЕ НЕРАВЕНСТВА: СПОСОБЫ ПОЛУЧЕНИЯ И ПРИМЕРЫ ПРИМЕНЕНИЯ",43]
[null,"ФИЗИЧЕС-КАЯ КУЛЬТУРА",null,"ИСТОРИЯ",27,"ФИЗИЧЕС-КАЯ КУЛЬТУРА",null,"АНГЛИЙ-СКИЙ ЯЗЫК",38,"ТЕХНОЛО-ГИЯ","7*м","АНГЛИЙ-СКИЙ ЯЗЫК",39,"РУССКИЙ ЯЗЫК",41,"ГЕОГРА-ФИЯ",36,"ИЗОБРАЗИТЕЛЬ-НОЕ ИСКУССТВО",40,"МАТЕМА-ТИКА",43,"РУССКАЯ СЛОВЕС-НОСТЬ. ОТ СЛОВА К СЛОВЕСНОСТИ",44,"БИОЛО-ГИЯ",28,"ХИМИЯ",22,"ОСНОВЫ БЕЗОПА-СНОСТИ ЖИЗНЕДЕ-ЯТЕЛЬНОСТИ",31,"ФИЗИЧЕС-КАЯ КУЛЬТУРА",null,"ИНФОРМАТИКА",18,"ГЕОГРА-ФИЯ",30,"РУССКИЙ ЯЗЫК",33,"ИСТОРИЯ",46,"СТАНОВЛЕНИЕ ГРАЖДАНСКОГО ОБЩЕСТВА:ИСТОРИЧЕСКИЕ ИСТОКИ",47,"МАТЕМА-ТИКА",34,"ФИЗИЧЕС-КАЯ КУЛЬТУРА"]
[null,null,null,null,null,null,null,null,null,null,null,null,null,null,null,"ИЗОБРАЗИТЕЛЬ-НОЕ ИСКУССТВО",40,null,null,"ФИЗИЧЕС-КАЯ КУЛЬТУРА",null,null,null,"ФИЗИЧЕС-КАЯ КУЛЬТУРА",null,"ОСНОВЫ БЕЗОПА-СНОСТИ ЖИЗНЕДЕ-ЯТЕЛЬНОСТИ",31,"МАТЕМА-ТИКА",43,null,null,"ОСНОВЫ БЕЗОПА-СНОСТИ ЖИЗНЕДЕ-ЯТЕЛЬНОСТИ",0,"ФИЗИЧЕС-КАЯ КУЛЬТУРА",null,"РОДНОЙ ЯЗЫК",33,"РОДНОЙ ЯЗЫК",0,"МИРОВАЯ ХУДО-ЖЕСТВЕННАЯ КУЛЬТУРА",44,"ФИЗИЧЕС-КАЯ КУЛЬТУРА",null,"эк ФИЗИКА (1.3)                                         эк ИНФОРМ(2.4)","18*24"]
["пятница","РОДНОЙ ЯЗЫК",32,"АНГЛИЙ-СКИЙ ЯЗЫК",33,"РОДНОЙ ЯЗЫК",44,"МАТЕМА-ТИКА",34,"ИСТОРИЯ",27,"РОДНОЙ ЯЗЫК",42,"РОДНОЙ ЯЗЫК",41,"ФИЗИЧЕС-КАЯ КУЛЬТУРА",null,"БИОЛО-ГИЯ",28,"АНГЛИЙ-СКИЙ ЯЗЫК",45,"БИОЛО-ГИЯ",30,"ОСНОВЫ БЕЗОПА-СНОСТИ ЖИЗНЕДЕ-ЯТЕЛЬНОСТИ",0,"РОДНОЙ ЯЗЫК",31,"МАТЕМА-ТИКА",43,"ХИМИЯ",22,"МАТЕМА-ТИКА",35,"ФИЗИКА",20,"ГЕОГРАФИЯ",36,"ФИЗИКА",24,"ПРАВО",47,"ОБЩЕСТВО-ЗНАНИЕ",46,"ФИЗИЧЕС-КАЯ КУЛЬТУРА"]
[null,"МАТЕМА-ТИКА",35,"МАТЕМА-ТИКА",34,"ОДНКНР",46,"РОДНОЙ ЯЗЫК",31,"ЛИТЕРА-ТУРА",44,"ФИЗИЧЕС-КАЯ КУЛЬТУРА",null,"ИСТОРИЯ",27,"РОДНОЙ ЯЗЫК",33,"МАТЕМА-ТИКА",30,"БИОЛО-ГИЯ",28,"АНГЛИЙ-СКИЙ ЯЗЫК",45,"АНГЛИЙ-СКИЙ ЯЗЫК",38,"ГЕОГРА-ФИЯ",36,"АНГЛ.ЯЗ\\ИНФОРМ","39*18","МАТЕМА-ТИКА",20,"РОДНОЙ ЯЗЫК",32,"ИСТОРИЯ",42,"ФИЗИЧЕС-КАЯ КУЛЬТУРА",null,"ХИМИЯ",22,"ОБЩЕСТВО-ЗНАНИЕ",47,"ФИЗИКА",24,"РУССКИЙ ЯЗЫК",41]
[null,"ИСТОРИЯ",47,"ОДНКНР",46,"АНГЛИЙ-СКИЙ ЯЗЫК",36,"РОДНАЯ ЛИТЕРА-ТУРА",31,"ФИЗИЧЕС-КАЯ КУЛЬТУРА",null,"ИСТОРИЯ",42,"МАТЕМА-ТИКА",32,"БИОЛО-ГИЯ",28,"ИСТОРИЯ",27,"РОДНОЙ ЯЗЫК",43,"МАТЕМА-ТИКА",20,"РОДНАЯ ЛИТЕРА-ТУРА",33,"МАТЕМА-ТИКА",35,"РОДНОЙ ЯЗЫК",41,"АНГЛИЙ-СКИЙ ЯЗЫК","39*45","БИОЛО-ГИЯ",30,"РОДНОЙ ЯЗЫК",44,"МАТЕМА-ТИКА",22,"ИНФОРМАТИКА",18,"ФИЗИЧЕС-КАЯ КУЛЬТУРА",null,"МАТЕМА-ТИКА",34,"ФИЗИКА",24]
[null,"ФИЗИЧЕС-КАЯ КУЛЬТУРА",null,"РОДНАЯ ЛИТЕРА-ТУРА",33,"ФИЗИЧЕС-КАЯ КУЛЬТУРА",null,"ОДНКНР",46,"РОДНОЙ ЯЗЫК",32,"МАТЕМА-ТИКА",28,"МАТЕМА-ТИКА",30,"ИСТОРИЯ",27,"ТЕХНОЛО-ГИЯ","7*м","РОДНАЯ ЛИТЕРА-ТУРА",31,"РОДНОЙ ЯЗЫК",44,"МАТЕМА-ТИКА",34,"МАТЕМА-ТИКА",35,"АНГЛ.ЯЗ\\ИНФОРМ","38*18","ФИЗИКА",20,"ИСТОРИЯ",42,"ХИМИЯ",22,"ПРАВО",47,"ГЕОГРАФИЯ",36,"ФИЗИКА",24,"ЛИТЕРА-ТУРА",41,"МАТЕМА-ТИКА",43]
[null,"ОДНКНР",46,"РОДНОЙ ЯЗЫК",33,"МАТЕМА-ТИКА",24,"АНГЛИЙ-СКИЙ ЯЗЫК",38,"РОДНАЯ ЛИТЕРА-ТУРА",44,"МАТЕМА-ТИКА",28,"РОДНАЯ ЛИТЕРА-ТУРА",32,"ТЕХНОЛО-ГИЯ","7*м","АНГЛИЙ-СКИЙ ЯЗЫК","30*39","МАТЕМА-ТИКА",43,"ИСТОРИЯ",27,"ИСТОРИЯ",47,"ФИЗИЧЕС-КАЯ КУЛЬТУРА",null,"ГЕОГРА-ФИЯ",36,"ИСТОРИЯ",42,"ФИЗИКА",20,"МАТЕМА-ТИКА",34,"ХИМИЯ",22,"МАТЕМА-ТИКА",35,"МАТЕМА-ТИКА",31,"АНГЛИЙ-СКИЙ ЯЗЫК",45,"ЛИТЕРА-ТУРА",41]
[null,"РОДНАЯ ЛИТЕРА-ТУРА",32,"ФИЗИЧЕС-КАЯ КУЛЬТУРА",null,"РОДНАЯ ЛИТЕРА-ТУРА",44,"ФИЗИЧЕС-КАЯ КУЛЬТУРА",null,"МАТЕМА-ТИКА",35,"РОДНАЯ ЛИТЕРА-ТУРА",43,"ФИЗИЧЕС-КАЯ КУЛЬТУРА",null,"МАТЕМА-ТИКА",28,"РОДНОЙ ЯЗЫК",31,"ТЕХНОЛО-ГИЯ","7*м","ТЕХНОЛО-ГИЯ","7*м","ГЕОГРА-ФИЯ",36,"ИСТОРИЯ",27,"ИСТОРИЯ",47,"РОДНОЙ ЯЗЫК",41,"ХИМИЯ",22,"БИОЛО-ГИЯ",30,"АСТРОНОМИЯ",24,"ОБЩЕСТВО-ЗНАНИЕ",46,"АНГЛИЙ-СКИЙ ЯЗЫК",45,"МАТЕМА-ТИКА",34,"ИСТОРИЯ",42]

{"sheet":"Лист2","index":1,"n_rows":40,"n_cols":43,"rows_kept":40,"cut":false,"hidden":false,"merged":[[0,29,0,35],[0,36,0,42],[0,1,0,7],[0,8,0,14],[0,15,0,21],[0,22,0,28]]}
["дни недели","понедельник",null,null,null,null,null,null,"вторник",null,null,null,null,null,null,"среда",null,null,null,null,null,null,"четверг",null,null,null,null,null,null,"пятница",null,null,null,null,null,null,"суббота"]
["номер урока",1,2,3,4,5,6,7,1,2,3,4,5,6,7,1,2,3,4,5,6,7,1,2,3,4,5,6,7,1,2,3,4,5,6,7,1,2,3,4,5,6,7]
["нш",null,null,null,null,null,null,null,null,null,null,null,null,null,null,"7В",null,null,"7Б",null,"7Б"]
[7,null,null,"5А","5А","8А","8Б","8В","5Б","5Б","5В","5В","5Г","5Г","11В",null,null,null,null,null,null,null,"6В","6В","6Б","6Б","6А","6А",null,null,null,null,"7Б","7А","7В, 7Г"]
[14]
[16]
[17,null,null,null,null,null,null,null,null,null,"5Г","5А","5Б","7В","7А",null,"6А","6В","6Б","7Г","5В","7Б"]
[18,"11В","5Б",null,"11Б",null,"10Б",null,null,null,"10А","8А","8Б",null,"10Б","9А",null,"7Г",null,"7А","9А",null,"10Б","9В",null,null,null,"9Б","11В",null,"8В","10Б","8В"]
[20,"7Г","9А","9А","9Б","9В","11Б",null,"7Г","8А","8Б","9А","7А","10Б",null,"11Б","9В","9Б","9А","9А",null,null,"7Г","8А","8Б","9А",null,null,null,"9В","9А","7Г","9А","9Б"]
[22,null,"8В",null,"8Б",null,"8А","9В","11А","11Б","11В","9В","9Б","9А",null,"7Г","5В",null,null,"9В","9А",null,"9В","5Г","5Б","8А","8В","8Б",null,"9А","10Б","10А","9В","10А","9Б"]
[24,null,"11Б","10Б",null,"10А","8В",null,"11Б","10Б","7Б","7А","7В","7Г",null,"10А",null,"11А","11В","8В","10Б",null,"11Б","7В","7А","7Г","5Г",null,"11В","10Б","11Б","11В","11А","5В","10А"]
[27,"8Б","5В","5В","5Б","5Г",null,null,"7Б","6А","6В","6В","7Г","7А",null,"8Б","5Б","5В","7Г","5Г","7А",null,"7Б","6А","6В","5Г","5В","5Б",null,"6А","6В","7Б","7А","7Г","8Б"]
[28,"8В","8Б","8А",null,null,null,null,"7А","5Г","7А","7В","9А","7Б",null,"11В","10А",null,"10Б","11А","11Б",null,"8В","5В","9А","8Б","5А","8А",null,"7Б","7В","7А","6Б","6Б","7А"]
[30,"9Б","9В","7Г","7Б","6В","9А",null,"9Б","9В","7Г","6Б","6А","6В",null,"5Г","5Г","5Б","5В","5А","6В",null,"9А","10Б","7Г","9Б","11А","9В",null,"7Г","7Б","9Б","6В","7Б","9В"]
[31,"5Г","5Г","8Б","9А","7Б","7Б",null,"5Г","8Б","11А","7Б","6Б","11А",null,"7Б","8Б","9А","5Г","7Б","5Г",null,"5Г","8Б","7В","7Б","9А","8В","8Б","8Б","5Г","5Г","7В","11А","7Б"]
[32,"5А","9Б","7Б","6А","10Б",null,null,"6А","9Б","6А","10Б","5А","5А",null,"5А","5А","6А","9Б","10Б","9Б",null,"5А","9Б","6А","8В","10Б",null,null,"5А","9Б","6В","6А","6В","5А"]
[33,"10А","7А","5Б","8А","5В",null,null,"10А","7А","5Б","10А","8А","5Б",null,"5Б","8А","7А","5Б","10А","7Б",null,"5Б","7А","8А",null,"7А","10А","10А","5Б","7А","8А","5Б","5Б"]
[34,"5Б","8А","11Б","9В","6Б",null,"8А","8А","6В","11Б","5Б","9В",null,"11Б","8А","9Б","11Б","9В","5Б","11А",null,"8А","5Б","9В","5В","8А","11Б",null,"5Г","5Б","11Б","8А","9В","11Б"]
[35,"7А","5А","6А","11А","8Б",null,null,"8Б","5А","10Б","6А","10Б","9Б","8Б","6А","10Б","5А","8Б","6В","6А","11А","8Б","5А","10Б","6А",null,null,null,"9Б","5А","8Б","8Б","10Б","6А"]
[36,"10Б","7Б","7В",null,"7А",null,"9Б","5В","7Б","8А","8Б","8В",null,null,"11А","6Б","10А","6А","11Б","11В",null,"7А","7Б","7Б","7В","7Б","7А",null,"10А","8Б","5В","10Б","8В","8А"]
[38,"8А","11В","6В","7А","5А","9Б",null,"11В","8В",null,"5Г",null,null,null,"8В","6В","8А","7А","9Б","5А",null,"9Б","11В","5А","7А","6В","5Г",null,null,"8А",null,"8В","5Г"]
[39,"6Б","6А","6В","10Б","5А","10А",null,"9А","8В",null,null,"7Б","9В",null,"6Б","6В","10Б","10А","6А","5А",null,"6А","10А","5А","10Б","6В","6Б",null,null,"8В","9А",null,"7Б"]
[40,"6А",null,"6Б","6В",null,"7В","7Г",null,null,null,null,null,null,null,null,null,"5Г","5А","8Б","8А","8В","5В",null,null,"5Б",null,"7Б","7А"]
[41,"6В",null,"8В","11В","11Б","6В","9А","6В","9А",null,"11В","11Б","8В",null,"6В","7Б","6Б","11А",null,"6Б","11В","11В","9А","11В","11Б","11Б","6В",null,"6В","11В","8В","11Б","11В","9А"]
[42,"9А","6Б",null,null,"9Б","9В","11В","9В","6Б","9А","9Б",null,"11В",null,"9Б","9А",null,null,"11В","9В",null,null,null,"9Б","11В","6Б",null,null,"6Б","9В","6Б","9Б","9А","11В"]
[43,"7В","7В","9Б","8В","11В","11В",null,"7В","11В","6Б","8В",null,"10А",null,"8В","11В","7В","8В","6Б","8В",null,"7В","8В","10А","6В","11В","7В","8В","8В",null,"7В","11В","7В","6Б"]
[44,"5В","7Г","9В","6Б","6А","6Б",null,"6Б","5В","9В","7Г","5В","5В",null,"5В","7Г","9В","6В","5В","7Г",null,"11А","7Г","5В","9В","9В","7Г","11А","5В","6А","9В","7Г","6А","5В"]
[45,"11Б","6А","5Г","7В","7Г","11А",null,"9А","7Г",null,null,"7Б","8Б",null,"9А","7В","8Б","7Б","6А","7В",null,"6А","11А","11Б","11А","8Б",null,null,"7В","7Г","9А",null,"11Б","11А"]
[46,null,"11А","11А","7Г","7В","7А",null,"10Б","7В","7В","11Б","11В","11Б","11А","10Б","11Б","8В","7В",null,"5Б",null,"6Б","11Б",null,null,"7В","10Б",null,"11Б","5В","5Б","5Г","5А","10Б"]
[47,"11А","10А","10А","10А","11А",null,null,"8В","10А","5А","11А","11А","8А","10А","7А","8В",null,null,"8А","10А","10А","10А",null,"11А","5А","10А","11А",null,"11А","11А","5А","10А","8А","8В"]
[]
[]
[]
[]
[]
[]
[]
["количество кабинетов",null,null,null,28]
[]
[" Ошибка! Пятница в кабинете 7 на  6 уроке классы: 7В, 7Г"]

{"sheet":"Лист3","index":2,"n_rows":104,"n_cols":131,"rows_kept":104,"cut":false,"hidden":false,"merged":[[38,59,43,59],[3,59,9,59],[10,59,16,59],[17,59,23,59],[24,59,30,59],[31,59,37,59]]}
[null,null,null,null,null,null,null,null,null,null,null,null,null,null,null,null,null,null,null,null,null,null,null,null,null,null,null,null,null,null,null,null,null,null,null,null,null,null,null,null,null,null,null,null,null,null,null,null,null,null,"* Если изменится количество классов, на этой странице нужно будет исправлять вручную"]
[" ",{"$f":"Лист1!B2","v":"5А"},{"$f":"Лист1!D2","v":"5Б"},{"$f":"Лист1!F2","v":"5В"},{"$f":"Лист1!H2","v":"5Г"},{"$f":"Лист1!J2","v":"6А"},{"$f":"Лист1!L2","v":"6Б"},{"$f":"Лист1!N2","v":"6В"},{"$f":"Лист1!P2","v":"7А"},{"$f":"Лист1!R2","v":"7Б"},{"$f":"Лист1!T2","v":"7В"},{"$f":"Лист1!V2","v":"7Г"},{"$f":"Лист1!X2","v":"8А"},{"$f":"Лист1!Z2","v":"8Б"},{"$f":"Лист1!AB2","v":"8В"},{"$f":"Лист1!AD2","v":"9А"},{"$f":"Лист1!AF2","v":"9Б"},{"$f":"Лист1!AH2","v":"9В"},{"$f":"Лист1!AJ2","v":"10А"},{"$f":"Лист1!AL2","v":"10Б"},{"$f":"Лист1!AN2","v":"11А"},{"$f":"Лист1!AP2","v":"11Б"},"11В",null,null,null,null,null,null,null,null,null,null,null,null,null,null,null,null,null,null,null,null,null,null,null,null,null,null,null,"* будет выделять красным ячейку, если балл 0, а в расписании урок есть",null,null,null,null,null,null,null,null,null,{"$f":"Лист1!B2","v":"5А"},{"$f":"Лист1!C2","v":0},{"$f":"Лист1!D2","v":"5Б"},{"$f":"Лист1!E2","v":0},{"$f":"Лист1!F2","v":"5В"},{"$f":"Лист1!G2","v":0},{"$f":"Лист1!H2","v":"5Г"},{"$f":"Лист1!I2","v":0},{"$f":"Лист1!J2","v":"6А"},{"$f":"Лист1!K2","v":0},{"$f":"Лист1!L2","v":"6Б"},{"$f":"Лист1!M2","v":0},{"$f":"Лист1!N2","v":"6В"},{"$f":"Лист1!O2","v":0},{"$f":"Лист1!P2","v":"7А"},{"$f":"Лист1!Q2","v":0},{"$f":"Лист1!R2","v":"7Б"},{"$f":"Лист1!S2","v":0},{"$f":"Лист1!T2","v":"7В"},{"$f":"Лист1!U2","v":0},{"$f":"Лист1!V2","v":"7Г"},{"$f":"Лист1!W2","v":0},{"$f":"Лист1!X2","v":"8А"},{"$f":"Лист1!Y2","v":0},{"$f":"Лист1!Z2","v":"8Б"},{"$f":"Лист1!AA2","v":0},{"$f":"Лист1!AB2","v":"8В"},{"$f":"Лист1!AC2","v":0},{"$f":"Лист1!AD2","v":"9А"},{"$f":"Лист1!AE2","v":0},{"$f":"Лист1!AF2","v":"9Б"},{"$f":"Лист1!AG2","v":0},{"$f":"Лист1!AH2","v":"9В"},{"$f":"Лист1!AI2","v":0},{"$f":"Лист1!AJ2","v":"10А"},{"$f":"Лист1!AK2","v":0},{"$f":"Лист1!AL2","v":"10Б"},{"$f":"Лист1!AM2","v":0},{"$f":"Лист1!AN2","v":"11А"},{"$f":"Лист1!AO2","v":0},{"$f":"Лист1!AP2","v":"11Б"},{"$f":"Лист1!AQ2","v":0},"11В",null,null,null,null,null,null,null,null,null,null,null,null,null,null,null,null,null,null,null,null,{"$f":"Лист1!BI2","v":0},{"$f":"Лист1!BJ2","v":0},{"$f":"Лист1!BK2","v":0},{"$f":"Лист1!BL2","v":0},{"$f":"Лист1!BM2","v":0},{"$f":"Лист1!BN2","v":0},{"$f":"Лист1!BO2","v":0},{"$f":"Лист1!BP2","v":0}]
["пн.",{"$f":"SUM(BI4:BI10)","v":34},{"$f":"SUM(BK4:BK10)","v":30},{"$f":"SUM(BM4:BM10)","v":34},{"$f":"SUM(BO4:BO10)","v":54},{"$f":"SUM(BQ4:BQ10)","v":50},{"$f":"SUM(BS4:BS10)","v":42},{"$f":"SUM(BU4:BU10)","v":45},{"$f":"SUM(BW4:BW10)","v":37},{"$f":"SUM(BY4:BY10)","v":33},{"$f":"SUM(CA4:CA10)","v":30},{"$f":"SUM(CC4:CC10)","v":30},{"$f":"SUM(CE4:CE10)","v":32},{"$f":"SUM(CG4:CG10)","v":32},{"$f":"SUM(CI4:CI10)","v":40},{"$f":"SUM(CK4:CK10)","v":40},{"$f":"SUM(CM4:CM10)","v":37},{"$f":"SUM(CO4:CO10)","v":32},{"$f":"SUM(CQ4:CQ10)","v":44},{"$f":"SUM(CS4:CS10)","v":41},{"$f":"SUM(CU4:CU10)","v":46},{"$f":"SUM(CW4:CW10)","v":55},{"$f":"SUM(CY4:CY10)","v":45},null,null,null,null,null,null,null,null,null,null,null,null,null,null,null,null,null,null,null,null,null,null,null,null,null,null,null,null,null,null,null,null,null,null,null,null,null,{"$f":"Лист1!B3","v":"№32"},{"$f":"Лист1!C3","v":0},{"$f":"Лист1!D3","v":"№34"},{"$f":"Лист1!E3","v":0},{"$f":"Лист1!F3","v":"№18"},{"$f":"Лист1!G3","v":0},{"$f":"Лист1!H3","v":"№24"},{"$f":"Лист1!I3","v":0},{"$f":"Лист1!J3","v":"№45"},{"$f":"Лист1!K3","v":0},{"$f":"Лист1!L3","v":"№44"},{"$f":"Лист1!M3","v":0},{"$f":"Лист1!N3","v":"№30"},{"$f":"Лист1!O3","v":0},{"$f":"Лист1!P3","v":"№28"},{"$f":"Лист1!Q3","v":0},{"$f":"Лист1!R3","v":"№31"},{"$f":"Лист1!S3","v":0},{"$f":"Лист1!T3","v":"№43"},{"$f":"Лист1!U3","v":0},{"$f":"Лист1!V3","v":"№20"},{"$f":"Лист1!W3","v":0},{"$f":"Лист1!X3","v":"№47"},{"$f":"Лист1!Y3","v":0},{"$f":"Лист1!Z3","v":"№27"},{"$f":"Лист1!AA3","v":0},{"$f":"Лист1!AB3","v":"№36"},{"$f":"Лист1!AC3","v":0},{"$f":"Лист1!AD3","v":"№22"},{"$f":"Лист1!AE3","v":0},{"$f":"Лист1!AF3","v":"№38"},{"$f":"Лист1!AG3","v":0},{"$f":"Лист1!AH3","v":"№40"},{"$f":"Лист1!AI3","v":0},{"$f":"Лист1!AJ3","v":"№33"},{"$f":"Лист1!AK3","v":0},{"$f":"Лист1!AL3","v":"№46"},{"$f":"Лист1!AM3","v":0},{"$f":"Лист1!AN3","v":"№35"},{"$f":"Лист1!AO3","v":0},{"$f":"Лист1!AP3","v":"№41"},{"$f":"Лист1!AQ3","v":0}]
["вт.",{"$f":"SUM(BI11:BI17)","v":38},{"$f":"SUM(BK11:BK17)","v":36},{"$f":"SUM(BM11:BM17)","v":41},{"$f":"SUM(BO11:BO17)","v":44},{"$f":"SUM(BQ11:BQ17)","v":57},{"$f":"SUM(BS11:BS17)","v":55},{"$f":"SUM(BU11:BU17)","v":46},{"$f":"SUM(BW11:BW17)","v":33},{"$f":"SUM(BY11:BY17)","v":33},{"$f":"SUM(CA11:CA17)","v":39},{"$f":"SUM(CC11:CC17)","v":29},{"$f":"SUM(CE11:CE17)","v":38},{"$f":"SUM(CG11:CG17)","v":39},{"$f":"SUM(CI11:CI17)","v":42},{"$f":"SUM(CK11:CK17)","v":50},{"$f":"SUM(CM11:CM17)","v":48},{"$f":"SUM(CO11:CO17)","v":38},{"$f":"SUM(CQ11:CQ17)","v":34},{"$f":"SUM(CS11:CS17)","v":33},{"$f":"SUM(CU11:CU17)","v":53},{"$f":"SUM(CW11:CW17)","v":55},{"$f":"SUM(CY11:CY17)","v":49},null,null,null,null,null,null,null,null,null,null,null,null,null,null,null,null,null,null,null,null,null,null,null,null,null,null,null,null,null,null,null,null,null,null,null,null,"пн.",8,null,3,null,8,null,4,null,12,null,12,null,12,null,10,null,8,null,8,null,10,null,7,null,6,null,6,null,0,null,7,null,0,null,8,null,0,null,1,null,5,null,8]
["ср.",{"$f":"SUM(BI18:BI24)","v":38},{"$f":"SUM(BK18:BK24)","v":46},{"$f":"SUM(BM18:BM24)","v":38},{"$f":"SUM(BO18:BO24)","v":59},{"$f":"SUM(BQ18:BQ24)","v":49},{"$f":"SUM(BS18:BS24)","v":57},{"$f":"SUM(BU18:BU24)","v":53},{"$f":"SUM(BW18:BW24)","v":34},{"$f":"SUM(BY18:BY24)","v":38},{"$f":"SUM(CA18:CA24)","v":35},{"$f":"SUM(CC18:CC24)","v":29},{"$f":"SUM(CE18:CE24)","v":30},{"$f":"SUM(CG18:CG24)","v":29},{"$f":"SUM(CI18:CI24)","v":39},{"$f":"SUM(CK18:CK24)","v":28},{"$f":"SUM(CM18:CM24)","v":40},{"$f":"SUM(CO18:CO24)","v":41},{"$f":"SUM(CQ18:CQ24)","v":46},{"$f":"SUM(CS18:CS24)","v":38},{"$f":"SUM(CU18:CU24)","v":60},{"$f":"SUM(CW18:CW24)","v":51},{"$f":"SUM(CY18:CY24)","v":56},null,null,null,null,null,null,null,null,null,null,null,null,null,null,null,null,null,null,null,null,null,null,null,null,null,null,null,null,null,null,null,null,null,null,null,null,null,3,null,8,null,10,null,12,null,7,null,3,null,3,null,0,null,0,null,1,null,0,null,7,null,7,null,7,null,12,null,9,null,12,null,5,null,9,null,5,null,8,null,10]
["чт.",{"$f":"SUM(BI25:BI31)","v":35},{"$f":"SUM(BK25:BK31)","v":34},{"$f":"SUM(BM25:BM31)","v":35},{"$f":"SUM(BO25:BO31)","v":61},{"$f":"SUM(BQ25:BQ31)","v":57},{"$f":"SUM(BS25:BS31)","v":55},{"$f":"SUM(BU25:BU31)","v":58},{"$f":"SUM(BW25:BW31)","v":35},{"$f":"SUM(BY25:BY31)","v":37},{"$f":"SUM(CA25:CA31)","v":29},{"$f":"SUM(CC25:CC31)","v":39},{"$f":"SUM(CE25:CE31)","v":32},{"$f":"SUM(CG25:CG31)","v":24},{"$f":"SUM(CI25:CI31)","v":32},{"$f":"SUM(CK25:CK31)","v":45},{"$f":"SUM(CM25:CM31)","v":37},{"$f":"SUM(CO25:CO31)","v":46},{"$f":"SUM(CQ25:CQ31)","v":40},{"$f":"SUM(CS25:CS31)","v":53},{"$f":"SUM(CU25:CU31)","v":41},{"$f":"SUM(CW25:CW31)","v":57},{"$f":"SUM(CY25:CY31)","v":42},null,null,null,null,null,null,null,null,null,null,null,null,null,null,null,null,null,null,null,null,null,null,null,null,null,null,null,null,null,null,null,null,null,null,null,null,null,4,null,10,null,9,null,6,null,13,null,3,null,3,null,8,null,6,null,4,null,4,null,6,null,7,null,12,null,7,null,6,null,1,null,0,null,10,null,9,null,12,null,1]
["пт.",{"$f":"SUM(BI32:BI38)","v":39},{"$f":"SUM(BK32:BK38)","v":38},{"$f":"SUM(BM32:BM38)","v":36},{"$f":"SUM(BO32:BO38)","v":45},{"$f":"SUM(BQ32:BQ38)","v":50},{"$f":"SUM(BS32:BS38)","v":54},{"$f":"SUM(BU32:BU38)","v":57},{"$f":"SUM(BW32:BW38)","v":34},{"$f":"SUM(BY32:BY38)","v":32},{"$f":"SUM(CA32:CA38)","v":40},{"$f":"SUM(CC32:CC38)","v":34},{"$f":"SUM(CE32:CE38)","v":26},{"$f":"SUM(CG32:CG38)","v":34},{"$f":"SUM(CI32:CI38)","v":51},{"$f":"SUM(CK32:CK38)","v":51},{"$f":"SUM(CM32:CM38)","v":51},{"$f":"SUM(CO32:CO38)","v":27},{"$f":"SUM(CQ32:CQ38)","v":40},{"$f":"SUM(CS32:CS38)","v":24},{"$f":"SUM(CU32:CU38)","v":31},{"$f":"SUM(CW32:CW38)","v":39},{"$f":"SUM(CY32:CY38)","v":33},null,null,null,null,null,null,null,null,null,null,null,null,null,null,null,null,null,null,null,null,null,null,null,null,null,null,null,null,null,null,null,null,null,null,null,null,null,10,null,5,null,4,null,8,null,6,null,13,null,13,null,6,null,2,null,11,null,6,null,0,null,10,null,10,null,6,null,0,null,9,null,12,null,1,null,8,null,8,null,9]
["сб.",{"$f":"SUM(BI39:BI44)","v":0},{"$f":"SUM(BK39:BK44)","v":0},{"$f":"SUM(BM39:BM44)","v":0},{"$f":"SUM(BO39:BO44)","v":0},{"$f":"SUM(BQ39:BQ44)","v":0},{"$f":"SUM(BS39:BS44)","v":0},{"$f":"SUM(BU39:BU44)","v":0},{"$f":"SUM(BW39:BW44)","v":0},{"$f":"SUM(BY39:BY44)","v":0},{"$f":"SUM(CA39:CA44)","v":0},{"$f":"SUM(CC39:CC44)","v":0},{"$f":"SUM(CE39:CE44)","v":0},{"$f":"SUM(CG39:CG44)","v":0},{"$f":"SUM(CI39:CI44)","v":0},{"$f":"SUM(CK39:CK44)","v":0},{"$f":"SUM(CM39:CM44)","v":0},{"$f":"SUM(CO39:CO44)","v":0},{"$f":"SUM(CQ39:CQ44)","v":0},{"$f":"SUM(CS39:CS44)","v":0},{"$f":"SUM(CU39:CU44)","v":0},{"$f":"SUM(CW39:CW44)","v":0},{"$f":"SUM(CY39:CY44)","v":0},null,null,null,null,null,null,null,null,null,null,null,null,null,null,null,null,null,null,null,null,null,null,null,null,null,null,null,"Шкала трудности учебных предметов",null,null,null,null,null,null,null,null,null,9,null,4,null,3,null,11,null,8,null,3,null,8,null,11,null,11,null,6,null,7,null,0,null,0,null,2,null,3,null,10,null,5,null,10,null,5,null,10,null,12,null,12]
[null,null,null,null,null,null,null,null,null,null,null,null,null,null,null,null,null,null,null,null,null,null,null,null,null,null,null,null,null,null,null,null,null,null,null,null,null,null,null,null,null,null,null,null,null,null,null,null,null,null,null,5,6,7,8,9,10,11,null,null,0,null,0,null,0,null,13,null,4,null,8,null,6,null,2,null,6,null,0,null,0,null,10,null,2,null,0,null,10,null,3,null,5,null,9,null,12,null,8,null,10,null,5]
[null,null,null,null,null,null,null,null,null,null,null,null,null,null,null,null,null,null,null,null,null,null,null,null,null,null,null,null,null,null,null,null,null,null,null,null,null,null,null,null,null,null,null,null,null,null,null,null,null,1,"ХИМИЯ",0,0,0,10,12,11,11,null,null,0,null,0,null,0,null,0,null,0,null,0,null,0,null,0,null,0,null,0,null,3,null,2,null,0,null,3,null,2,null,2,null,0,null,0,null,4,null,5,null,0,null,0]
[{"$f":"TRANSPOSE(A2:E8)","v":" "},"пн.","вт.","ср.","чт.","пт.","сб.",null,null,null,null,null,null,null,null,null,null,null,null,null,null,null,null,null,null,null,null,null,null,null,null,null,null,null,null,null,null,null,null,null,null,null,null,null,null,null,null,null,null,2,"ГЕОМЕТ-РИЯ",0,0,12,10,8,11,11,null,"вт.",2,null,8,null,5,null,12,null,12,null,13,null,13,null,7,null,0,null,6,null,7,null,4,null,8,null,0,null,5,null,2,null,0,null,8,null,8,null,12,null,12,null,8]
["5А",34,38,38,35,39,0,null,null,null,null,null,null,null,null,null,null,null,null,null,null,null,null,null,null,null,null,null,null,null,null,null,null,null,null,null,null,null,null,null,null,null,null,null,null,null,null,null,null,3,"ФИЗИКА",0,0,8,9,13,12,12,null,null,10,null,10,null,8,null,1,null,8,null,12,null,12,null,11,null,11,null,0,null,9,null,8,null,8,null,13,null,13,null,12,null,5,null,7,null,1,null,9,null,5,null,11]
["5Б",30,36,46,34,38,0,null,null,null,null,null,null,null,null,null,null,null,null,null,null,null,null,null,null,null,null,null,null,null,null,null,null,null,null,null,null,null,null,null,null,null,null,null,null,null,null,null,null,4,"АЛГЕБРА",0,0,10,9,7,10,10,null,null,5,null,4,null,10,null,8,null,1,null,13,null,4,null,4,null,7,null,11,null,0,null,8,null,4,null,9,null,0,null,0,null,8,null,12,null,2,null,5,null,1,null,11]
["5В",34,41,38,35,36,0,null,null,null,null,null,null,null,null,null,null,null,null,null,null,null,null,null,null,null,null,null,null,null,null,null,null,null,null,null,null,null,null,null,null,null,null,null,null,null,null,null,null,5,"АЛГЕБРА И НАЧАЛА МАТЕМАТИЧЕ-СКОГО АНАЛИЗА",0,0,0,0,0,10,10,null,null,8,null,3,null,2,null,13,null,13,null,7,null,3,null,0,null,10,null,10,null,3,null,9,null,7,null,6,null,9,null,7,null,8,null,0,null,5,null,5,null,6,null,5]
["5Г",54,44,59,61,45,0,null,null,null,null,null,null,null,null,null,null,null,null,null,null,null,null,null,null,null,null,null,null,null,null,null,null,null,null,null,null,null,null,null,null,null,null,null,null,null,null,null,null,6,"ЭКОНО-МИКА",0,0,0,0,0,6,0,null,null,9,null,2,null,7,null,3,null,11,null,4,null,6,null,2,null,3,null,7,null,8,null,0,null,0,null,5,null,6,null,13,null,5,null,0,null,8,null,11,null,11,null,2]
[null,null,null,null,null,null,null,null,null,null,null,null,null,null,null,null,null,null,null,null,null,null,null,null,null,null,null,null,null,null,null,null,null,null,null,null,null,null,null,null,null,null,null,null,null,null,null,null,null,7,"ЧЕРЧЕНИЕ",0,0,0,0,0,0,0,null,null,4,null,9,null,9,null,7,null,12,null,6,null,8,null,6,null,1,null,3,null,0,null,7,null,9,null,7,null,7,null,5,null,2,null,5,null,0,null,11,null,11,null,12]
[null,null,null,null,null,null,null,null,null,null,null,null,null,null,null,null,null,null,null,null,null,null,null,null,null,null,null,null,null,null,null,null,null,null,null,null,null,null,null,null,null,null,null,null,null,null,null,null,null,8,"МИРОВАЯ ХУДО-ЖЕСТВЕННАЯ КУЛЬТУРА",0,0,0,0,0,5,5,null,null,0,null,0,null,0,null,0,null,0,null,0,null,0,null,3,null,1,null,2,null,2,null,2,null,3,null,2,null,10,null,9,null,10,null,2,null,9,null,0,null,9,null,0]
[null,null,null,null,null,null,null,null,null,null,null,null,null,null,null,null,null,null,null,null,null,null,null,null,null,null,null,null,null,null,null,null,null,null,null,null,null,null,null,null,null,null,null,null,null,null,null,null,null,9,"БИОЛО-ГИЯ",10,8,7,7,7,7,7,null,"ср.",10,null,3,null,10,null,13,null,13,null,1,null,12,null,10,null,11,null,9,null,8,null,7,null,0,null,7,null,2,null,5,null,3,null,8,null,5,null,10,null,7,null,10]
[null,null,null,null,null,null,null,null,null,null,null,null,null,null,null,null,null,null,null,null,null,null,null,null,null,null,null,null,null,null,null,null,null,null,null,null,null,null,null,null,null,null,null,null,null,null,null,null,null,10,"МАТЕМА-ТИКА",10,13,0,0,0,0,0,null,null,3,null,6,null,10,null,12,null,12,null,12,null,1,null,9,null,9,null,11,null,6,null,8,null,8,null,0,null,7,null,0,null,9,null,0,null,0,null,9,null,8,null,5]
[null,null,null,null,null,null,null,null,null,null,null,null,null,null,null,null,null,null,null,null,null,null,null,null,null,null,null,null,null,null,null,null,null,null,null,null,null,null,null,null,null,null,null,null,null,null,null,null,null,11,"АНГЛИЙ-СКИЙ ЯЗЫК",9,11,10,8,9,8,8,null,null,3,null,10,null,4,null,13,null,6,null,11,null,4,null,11,null,0,null,0,null,0,null,1,null,1,null,7,null,7,null,13,null,8,null,12,null,6,null,8,null,5,null,5]
[null,null,null,null,null,null,null,null,null,null,null,null,null,null,null,null,null,null,null,null,null,null,null,null,null,null,null,null,null,null,null,null,null,null,null,null,null,null,null,null,null,null,null,null,null,null,null,null,null,12,"РУССКИЙ ЯЗЫК",8,12,11,7,6,9,9,null,null,8,null,10,null,8,null,11,null,3,null,8,null,12,null,0,null,4,null,10,null,1,null,6,null,5,null,13,null,0,null,2,null,11,null,12,null,3,null,7,null,8,null,8]
[null,null,null,null,null,null,null,null,null,null,null,null,null,null,null,null,null,null,null,null,null,null,null,null,null,null,null,null,null,null,null,null,null,null,null,null,null,null,null,null,null,null,null,null,null,null,null,null,null,13,"КРАЕВЕДЕНИЕ",0,0,0,0,0,0,0,null,null,4,null,9,null,3,null,4,null,11,null,12,null,13,null,1,null,10,null,2,null,5,null,0,null,6,null,7,null,5,null,6,null,5,null,3,null,11,null,12,null,12,null,7]
[null,null,null,null,null,null,null,null,null,null,null,null,null,null,null,null,null,null,null,null,null,null,null,null,null,null,null,null,null,null,null,null,null,null,null,null,null,null,null,null,null,null,null,null,null,null,null,null,null,14,"ПРИРОДОВЕДЕНИЕ",0,0,0,0,0,0,0,null,null,10,null,8,null,3,null,6,null,4,null,13,null,11,null,1,null,2,null,2,null,0,null,5,null,7,null,5,null,7,null,7,null,0,null,11,null,8,null,5,null,10,null,12]
[null,null,null,null,null,null,null,null,null,null,null,null,null,null,null,null,null,null,null,null,null,null,null,null,null,null,null,null,null,null,null,null,null,null,null,null,null,null,null,null,null,null,null,null,null,null,null,null,null,15,"ГЕОГРА-ФИЯ",7,7,6,6,5,3,3,null,null,0,null,0,null,0,null,0,null,0,null,0,null,0,null,2,null,2,null,1,null,9,null,3,null,2,null,0,null,0,null,7,null,5,null,0,null,5,null,9,null,1,null,9]
[null,null,null,null,null,null,null,null,null,null,null,null,null,null,null,null,null,null,null,null,null,null,null,null,null,null,null,null,null,null,null,null,null,null,null,null,null,null,null,null,null,null,null,null,null,null,null,null,null,16,"ГРАЖДАНОВДЕНИЕ",0,0,0,0,0,0,0,null,"чт.",3,null,8,null,4,null,12,null,12,null,13,null,12,null,6,null,10,null,11,null,0,null,4,null,7,null,5,null,9,null,0,null,0,null,12,null,8,null,3,null,11,null,6]
[null,null,null,null,null,null,null,null,null,null,null,null,null,null,null,null,null,null,null,null,null,null,null,null,null,null,null,null,null,null,null,null,null,null,null,null,null,null,null,null,null,null,null,null,null,null,null,null,null,17,"ИСТОРИЯ",5,8,6,8,10,5,5,null,null,10,null,10,null,4,null,11,null,4,null,12,null,7,null,11,null,6,null,0,null,7,null,10,null,0,null,10,null,6,null,6,null,12,null,8,null,7,null,5,null,12,null,11]
[null,"пн.","вт.","ср.","чт.","пт.","сб.",null,null,null,null,null,null,null,null,null,null,null,null,null,null,null,null,null,null,null,null,null,null,null,null,null,null,null,null,null,null,null,null,null,null,null,null,null,null,null,null,null,null,18,"РИТМИКА",0,0,0,0,0,0,0,null,null,6,null,4,null,8,null,12,null,13,null,4,null,9,null,6,null,8,null,2,null,10,null,7,null,4,null,0,null,13,null,9,null,8,null,0,null,0,null,8,null,3,null,8]
[{"$f":"TRANSPOSE(F2:H8)","v":"6А"},50,57,49,57,50,0,null,null,null,null,null,null,null,null,null,null,null,null,null,null,null,null,null,null,null,null,null,null,null,null,null,null,null,null,null,null,null,null,null,null,null,null,null,null,null,null,null,null,19,"ТЕХНОЛО-ГИЯ",4,3,2,1,4,4,4,null,null,8,null,4,null,3,null,13,null,9,null,9,null,13,null,4,null,11,null,6,null,4,null,8,null,10,null,6,null,5,null,5,null,7,null,5,null,8,null,8,null,10,null,1]
["6Б",42,55,57,55,54,0,null,null,null,null,null,null,null,null,null,null,null,null,null,null,null,null,null,null,null,null,null,null,null,null,null,null,null,null,null,null,null,null,null,null,null,null,null,null,null,null,null,null,20,"ЛИТЕРА-ТУРА",4,6,4,4,7,8,8,null,null,4,null,5,null,6,null,4,null,6,null,11,null,6,null,8,null,0,null,4,null,7,null,0,null,3,null,9,null,10,null,10,null,9,null,6,null,12,null,11,null,8,null,3]
["6В",45,46,53,58,57,0,null,null,null,null,null,null,null,null,null,null,null,null,null,null,null,null,null,null,null,null,null,null,null,null,null,null,null,null,null,null,null,null,null,null,null,null,null,null,null,null,null,null,21,"ИЗОБРАЗИТЕЛЬ-НОЕ ИСКУССТВО",3,3,1,3,0,0,0,null,null,4,null,3,null,10,null,9,null,13,null,6,null,11,null,0,null,2,null,6,null,2,null,3,null,0,null,2,null,0,null,7,null,9,null,8,null,6,null,5,null,8,null,8]
[null,null,null,null,null,null,null,null,null,null,null,null,null,null,null,null,null,null,null,null,null,null,null,null,null,null,null,null,null,null,null,null,null,null,null,null,null,null,null,null,null,null,null,null,null,null,null,null,null,22,"ФИЗИЧЕС-КАЯ КУЛЬТУРА",3,4,2,2,2,1,1,null,null,0,null,0,null,0,null,0,null,0,null,0,null,0,null,0,null,0,null,0,null,9,null,0,null,0,null,0,null,2,null,0,null,1,null,1,null,12,null,1,null,5,null,5]
[null,null,null,null,null,null,null,null,null,null,null,null,null,null,null,null,null,null,null,null,null,null,null,null,null,null,null,null,null,null,null,null,null,null,null,null,null,null,null,null,null,null,null,null,null,null,null,null,null,23,"ЭКОЛОГИЯ. БИОСФЕРА И ЧЕЛОВЕЧЕСТВО",0,0,0,0,1,0,0,null,"пт.",8,null,8,null,8,null,3,null,8,null,13,null,11,null,7,null,11,null,7,null,9,null,0,null,8,null,7,null,13,null,12,null,0,null,5,null,1,null,5,null,10,null,5]
[null,null,null,null,null,null,null,null,null,null,null,null,null,null,null,null,null,null,null,null,null,null,null,null,null,null,null,null,null,null,null,null,null,null,null,null,null,null,null,null,null,null,null,null,null,null,null,null,null,24,"МУЗЫКА",2,1,1,0,0,0,0,null,null,5,null,10,null,9,null,3,null,11,null,11,null,8,null,11,null,7,null,0,null,7,null,9,null,2,null,0,null,10,null,0,null,5,null,12,null,5,null,8,null,0,null,8]
[null,null,null,null,null,null,null,null,null,null,null,null,null,null,null,null,null,null,null,null,null,null,null,null,null,null,null,null,null,null,null,null,null,null,null,null,null,null,null,null,null,null,null,null,null,null,null,null,null,25,"ИНФОРМА-ТИКА",0,10,4,7,7,6,6,null,null,10,null,4,null,5,null,8,null,3,null,8,null,4,null,4,null,4,null,11,null,0,null,7,null,8,null,9,null,9,null,13,null,0,null,8,null,0,null,5,null,12,null,5]
[null,null,null,null,null,null,null,null,null,null,null,null,null,null,null,null,null,null,null,null,null,null,null,null,null,null,null,null,null,null,null,null,null,null,null,null,null,null,null,null,null,null,null,null,null,null,null,null,null,26,"ИНФОРМА-ТИКА И ИКТ",0,0,0,0,7,6,6,null,null,9,null,7,null,0,null,13,null,3,null,12,null,13,null,10,null,6,null,7,null,2,null,2,null,7,null,13,null,12,null,7,null,8,null,0,null,5,null,10,null,9,null,10]
[null,null,null,null,null,null,null,null,null,null,null,null,null,null,null,null,null,null,null,null,null,null,null,null,null,null,null,null,null,null,null,null,null,null,null,null,null,null,null,null,null,null,null,null,null,null,null,null,null,27,"ОСНОВЫ БЕЗОПА-СНОСТИ ЖИЗНЕДЕ-ЯТЕЛЬНОСТИ",0,2,3,3,3,2,2,null,null,0,null,9,null,10,null,12,null,13,null,6,null,12,null,0,null,4,null,7,null,8,null,8,null,9,null,12,null,0,null,10,null,5,null,9,null,8,null,2,null,5,null,1]
[null,null,null,null,null,null,null,null,null,null,null,null,null,null,null,null,null,null,null,null,null,null,null,null,null,null,null,null,null,null,null,null,null,null,null,null,null,null,null,null,null,null,null,null,null,null,null,null,null,28,"ОБЩЕСТВО-ЗНАНИЕ",6,9,9,5,5,5,5,null,null,7,null,0,null,4,null,6,null,12,null,4,null,9,null,2,null,0,null,8,null,8,null,0,null,0,null,10,null,7,null,9,null,8,null,1,null,5,null,0,null,2,null,0]
[null,null,null,null,null,null,null,null,null,null,null,null,null,null,null,null,null,null,null,null,null,null,null,null,null,null,null,null,null,null,null,null,null,null,null,null,null,null,null,null,null,null,null,null,null,null,null,null,null,29,"МЕТОДЫ РЕШЕНИЯ ЗАДАЧ ПО ФИЗИКЕ",0,0,0,0,0,12,12,null,null,0,null,0,null,0,null,0,null,0,null,0,null,0,null,0,null,0,null,0,null,0,null,0,null,0,null,0,null,0,null,0,null,1,null,5,null,0,null,1,null,1,null,4]
[null,null,null,null,null,null,null,null,null,null,null,null,null,null,null,null,null,null,null,null,null,null,null,null,null,null,null,null,null,null,null,null,null,null,null,null,null,null,null,null,null,null,null,null,null,null,null,null,null,30,"СТАНОВЛЕНИЕ ГРАЖДАНСКОГО ОБЩЕСТВА:ИСТОРИЧЕСКИЕ ИСТОКИ",0,0,0,0,0,5,5,null,"сб.",0,null,0,null,0,null,0,null,0,null,0,null,0,null,0,null,0,null,0,null,0,null,0,null,0,null,0,null,0,null,0,null,0,null,0,null,0,null,0,null,0,null,0]
[null,null,null,null,null,null,null,null,null,null,null,null,null,null,null,null,null,null,null,null,null,null,null,null,null,null,null,null,null,null,null,null,null,null,null,null,null,null,null,null,null,null,null,null,null,null,null,null,null,31,"ВВЕДЕНИЕ В ИЗБИРАТЕЛЬ-НОЕ ПРАВО",0,0,0,5,0,0,0,null,null,0,null,0,null,0,null,0,null,0,null,0,null,0,null,0,null,0,null,0,null,0,null,0,null,0,null,0,null,0,null,0,null,0,null,0,null,0,null,0,null,0,null,0]
[null,null,null,null,null,null,null,null,null,null,null,null,null,null,null,null,null,null,null,null,null,null,null,null,null,null,null,null,null,null,null,null,null,null,null,null,null,null,null,null,null,null,null,null,null,null,null,null,null,32,"РУССКОЕ ПРАВО-ПИСАНИЕ:ОРФОГРАФИЯ И ПУНКТУАЦИЯ",0,0,0,0,0,9,9,null,null,0,null,0,null,0,null,0,null,0,null,0,null,0,null,0,null,0,null,0,null,0,null,0,null,0,null,0,null,0,null,0,null,0,null,0,null,0,null,0,null,0,null,0]
[null,"пн.","вт.","ср.","чт.","пт.","сб.",null,null,null,null,null,null,null,null,null,null,null,null,null,null,null,null,null,null,null,null,null,null,null,null,null,null,null,null,null,null,null,null,null,null,null,null,null,null,null,null,null,null,33,"РУССКАЯ СЛОВЕС-НОСТЬ. ОТ СЛОВА К СЛОВЕСНОСТИ",9,9,9,9,9,0,0,null,null,0,null,0,null,0,null,0,null,0,null,0,null,0,null,0,null,0,null,0,null,0,null,0,null,0,null,0,null,0,null,0,null,0,null,0,null,0,null,0,null,0,null,0]
[{"$f":"TRANSPOSE(I2:K8)","v":"7А"},37,33,34,35,34,0,null,null,null,null,null,null,null,null,null,null,null,null,null,null,null,null,null,null,null,null,null,null,null,null,null,null,null,null,null,null,null,null,null,null,null,null,null,null,null,null,null,null,34,"СЕКРЕТЫ РУСС-КОГО СЛОВО-ОБРАЗОВАНИЯ",0,0,0,9,0,0,0,null,null,0,null,0,null,0,null,0,null,0,null,0,null,0,null,0,null,0,null,0,null,0,null,0,null,0,null,0,null,0,null,0,null,0,null,0,null,0,null,0,null,0,null,0]
["7Б",33,33,38,37,32,0,null,null,null,null,null,null,null,null,null,null,null,null,null,null,null,null,null,null,null,null,null,null,null,null,null,null,null,null,null,null,null,null,null,null,null,null,null,null,null,null,null,null,35,"РАЦИОНАЛЬНЫЕ И ИРРАЦИОНАЛЬНЫЕ АЛГЕБРАИЧЕСКИЕ ЗАДАЧИ",0,0,0,0,0,0,10,null,null,0,null,0,null,0,null,0,null,0,null,0,null,0,null,0,null,0,null,0,null,0,null,0,null,0,null,0,null,0,null,0,null,0,null,0,null,0,null,0,null,0,null,0]
["7В",30,39,35,29,40,0,null,null,null,null,null,null,null,null,null,null,null,null,null,null,null,null,null,null,null,null,null,null,null,null,null,null,null,null,null,null,null,null,null,null,null,null,null,null,null,null,null,null,36,"ЗАМЕЧАТЕЛЬНЫЕ НЕРАВЕНСТВА: СПОСОБЫ ПОЛУЧЕНИЯ И ПРИМЕРЫ ПРИМЕНЕНИЯ",0,0,0,0,0,10,0]
[null,null,null,null,null,null,null,null,null,null,null,null,null,null,null,null,null,null,null,null,null,null,null,null,null,null,null,null,null,null,null,null,null,null,null,null,null,null,null,null,null,null,null,null,null,null,null,null,null,37,"АЗБУКА ПО-ТРЕБИТЕЛЯ",0,0,0,5,0,0,0]
[null,null,null,null,null,null,null,null,null,null,null,null,null,null,null,null,null,null,null,null,null,null,null,null,null,null,null,null,null,null,null,null,null,null,null,null,null,null,null,null,null,null,null,null,null,null,null,null,null,38,"ПРАВОСЛАВ-НАЯ КУЛЬТУРА",0,0,5,0,5,5,5]
[null,null,null,null,null,null,null,null,null,null,null,null,null,null,null,null,null,null,null,null,null,null,null,null,null,null,null,null,null,null,null,null,null,null,null,null,null,null,null,null,null,null,null,null,null,null,null,null,null,39,"ИНФОРМАЦИОН-НЫЕ СИСТЕМЫ И МОДЕЛИ",0,0,0,0,0,6,0]
[null,null,null,null,null,null,null,null,null,null,null,null,null,null,null,null,null,null,null,null,null,null,null,null,null,null,null,null,null,null,null,null,null,null,null,null,null,null,null,null,null,null,null,null,null,null,null,null,null,40,"ЗАДАЧИ С ПА-РАМЕТРАМИ",0,0,0,0,10,0,0]
[null,null,null,null,null,null,null,null,null,null,null,null,null,null,null,null,null,null,null,null,null,null,null,null,null,null,null,null,null,null,null,null,null,null,null,null,null,null,null,null,null,null,null,null,null,null,null,null,null,41,"СТЕРЕО-МЕТРИЯ",0,0,11,0,0,0,0]
[null,null,null,null,null,null,null,null,null,null,null,null,null,null,null,null,null,null,null,null,null,null,null,null,null,null,null,null,null,null,null,null,null,null,null,null,null,null,null,null,null,null,null,null,null,null,null,null,"по первому",42,"ИНФОРМ/ АНГЛ.ЯЗ.",0,10,7,0,8,0,0]
[null,null,null,null,null,null,null,null,null,null,null,null,null,null,null,null,null,null,null,null,null,null,null,null,null,null,null,null,null,null,null,null,null,null,null,null,null,null,null,null,null,null,null,null,null,null,null,null,null,43,"АНГЛ.ЯЗ./ ИНФОРМ",0,10,7,0,8,0,0]
[null,null,null,null,null,null,null,null,null,null,null,null,null,null,null,null,null,null,null,null,null,null,null,null,null,null,null,null,null,null,null,null,null,null,null,null,null,null,null,null,null,null,null,null,null,null,null,null,null,44,"ТЕХН.(ПП)/ АНГ.ЯЗ.",0,0,0,0,0,0,7]
[null,null,null,null,null,null,null,null,null,null,null,null,null,null,null,null,null,null,null,null,null,null,null,null,null,null,null,null,null,null,null,null,null,null,null,null,null,null,null,null,null,null,null,null,null,null,null,null,null,45,"АНГЛ.ЯЗ./ ТЕХН.(ПП)",0,0,0,0,0,0,8]
[null,null,null,null,null,null,null,null,null,null,null,null,null,null,null,null,null,null,null,null,null,null,null,null,null,null,null,null,null,null,null,null,null,null,null,null,null,null,null,null,null,null,null,null,null,null,null,null,null,46,"ТЕХН.(ОП)/ ТЕХН.(ПП)",0,0,0,0,0,0,4]
[null,null,null,null,null,null,null,null,null,null,null,null,null,null,null,null,null,null,null,null,null,null,null,null,null,null,null,null,null,null,null,null,null,null,null,null,null,null,null,null,null,null,null,null,null,null,null,null,null,47,"ТЕХН.(ОП)/ ТЕХН.(ПП)",0,0,0,0,0,0,4]
[null,"пн.","вт.","ср.","чт.","пт.","сб.",null,null,null,null,null,null,null,null,null,null,null,null,null,null,null,null,null,null,null,null,null,null,null,null,null,null,null,null,null,null,null,null,null,null,null,null,null,null,null,null,null,null,48,"ТЕХНОЛО-ГИЯ (ОП)",0,0,0,0,0,4,4]
[{"$f":"TRANSPOSE(L2:N8)","v":"7Г"},30,29,29,39,34,0,null,null,null,null,null,null,null,null,null,null,null,null,null,null,null,null,null,null,null,null,null,null,null,null,null,null,null,null,null,null,null,null,null,null,null,null,null,null,null,null,null,null,49,"ТЕХНОЛО-ГИЯ (ПП)",0,0,0,0,0,4,4]
["8А",32,38,30,32,26,0,null,null,null,null,null,null,null,null,null,null,null,null,null,null,null,null,null,null,null,null,null,null,null,null,null,null,null,null,null,null,null,null,null,null,null,null,null,null,null,null,null,null,50,"ТЕХНОЛО-ГИЯ (д,м)",4,3,2,1,0,0,0]
["8Б",32,39,29,24,34,0,null,null,null,null,null,null,null,null,null,null,null,null,null,null,null,null,null,null,null,null,null,null,null,null,null,null,null,null,null,null,null,null,null,null,null,null,null,null,null,null,null,null,51,"ТЕХНОЛО-ГИЯ (мал.)",4,3,2,1,0,0,0]
[null,null,null,null,null,null,null,null,null,null,null,null,null,null,null,null,null,null,null,null,null,null,null,null,null,null,null,null,null,null,null,null,null,null,null,null,null,null,null,null,null,null,null,null,null,null,null,null,null,52,"ТЕХНОЛО-ГИЯ (дев.)",4,3,2,1,0,0,0]
[null,null,null,null,null,null,null,null,null,null,null,null,null,null,null,null,null,null,null,null,null,null,null,null,null,null,null,null,null,null,null,null,null,null,null,null,null,null,null,null,null,null,null,null,null,null,null,null,null,53,"ЭКОЛОГИЯ ЧЕЛОВЕКА",0,0,0,6,0,0,0]
[null,null,null,null,null,null,null,null,null,null,null,null,null,null,null,null,null,null,null,null,null,null,null,null,null,null,null,null,null,null,null,null,null,null,null,null,null,null,null,null,null,null,null,null,null,null,null,null,null,54,"ИСКУССТВО",0,0,0,0,3,0,0]
[null,null,null,null,null,null,null,null,null,null,null,null,null,null,null,null,null,null,null,null,null,null,null,null,null,null,null,null,null,null,null,null,null,null,null,null,null,null,null,null,null,null,null,null,null,null,null,null,null,55,"ПРАВО",0,0,0,0,0,0,5]
[null,null,null,null,null,null,null,null,null,null,null,null,null,null,null,null,null,null,null,null,null,null,null,null,null,null,null,null,null,null,null,null,null,null,null,null,null,null,null,null,null,null,null,null,null,null,null,null,null,56,"ЭКОЛОГИЯ РАСТЕНИЙ",0,3,0,0,0,0,0]
[null,null,null,null,null,null,null,null,null,null,null,null,null,null,null,null,null,null,null,null,null,null,null,null,null,null,null,null,null,null,null,null,null,null,null,null,null,null,null,null,null,null,null,null,null,null,null,null,null,57,"ЭКОЛОГИЯ ЖИВОТНЫХ",0,0,3,0,0,0,0]
[null,null,null,null,null,null,null,null,null,null,null,null,null,null,null,null,null,null,null,null,null,null,null,null,null,null,null,null,null,null,null,null,null,null,null,null,null,null,null,null,null,null,null,null,null,null,null,null,null,58,"ЭЛ.КУРС",0,0,0,0,7,0,0]
[]
[]
[]
[null,"пн.","вт.","ср.","чт.","пт.","сб."]
[{"$f":"TRANSPOSE(O2:Q8)","v":"8В"},40,42,39,32,51,0]
["9А",40,50,28,45,51,0]
["9Б",37,48,40,37,51,0]
[]
[]
[]
[]
[]
[]
[]
[]
[]
[]
[]
[null,"пн.","вт.","ср.","чт.","пт.","сб."]
[{"$f":"TRANSPOSE(R2:T8)","v":"9В"},32,38,41,46,27,0]
["10А",44,34,46,40,40,0]
["10Б",41,33,38,53,24,0]
[]
[]
[]
[]
[]
[]
[]
[]
[]
[]
[]
[null,"пн.","вт.","ср.","чт.","пт.","сб."]
[{"$f":"TRANSPOSE(U2:W8)","v":"11А"},46,53,60,41,31,0]
["11Б",55,55,51,57,39,0]
["11В",45,49,56,42,33,0]